bitfinex/quotes_SOLUSD_20230905
["timestamp","ask_amount","ask_price","bid_price","bid_amount"]
[1693922398690,55.0,19.973,19.961,27.815]
[1693922399185,7.811,19.972,19.952,25.26]
[1693922399392,7.811,19.97,19.957,7.816]
[1693922399586,7.811,19.97,19.948,99.755]
[1693922399587,58.588,19.97,19.948,25.264]
[1693922399782,7.814,19.963,19.949,7.819]
[1693922400285,55.0,19.962,19.949,7.819]
[1693922400587,62.815,19.962,19.945,55.15]
[1693922400886,62.815,19.962,19.945,7.821]
[1693922401078,7.818,19.954,19.941,7.822]
[1693922401278,7.819,19.952,19.935,82.12822861]
[1693922401482,55.0,19.951,19.939,7.823]
[1693922401681,55.0,19.953,19.939,7.823]
[1693922402193,94.2272,19.953,19.939,7.823]
[1693922402379,55.0,19.952,19.939,7.823]
[1693922403991,55.0,19.953,19.939,7.823]
[1693922404399,153.9002,19.953,19.942,7.822]
[1693922404893,161.7182,19.953,19.94,20.0]
[1693922405095,161.7182,19.953,19.938,20.0]
[1693922405397,161.7182,19.953,19.94,7.823]
[1693922405588,161.7182,19.953,19.941,20.0]
[1693922405899,161.7182,19.953,19.942,7.822]
[1693922406397,98.9002,19.953,19.942,7.822]
[1693922406589,98.3796,19.96,19.942,7.822]
[1693922406979,7.815,19.961,19.942,7.822]
[1693922407193,7.814,19.963,19.942,7.822]
[1693922407380,26.19193683,19.961,19.942,7.822]
[1693922408276,26.19193683,19.961,19.948,88.227]
[1693922408491,7.811,19.97,19.948,88.227]
[1693922408691,26.18201361,19.969,19.954,7.817]
[1693922408992,7.813,19.966,19.954,7.817]
[1693922409381,7.812,19.968,19.954,7.817]
[1693922409785,26.18201361,19.969,19.954,7.817]
[1693922410190,96.9636,19.973,19.954,7.817]
[1693922411491,104.7736,19.973,19.954,7.817]
[1693922413210,104.7736,19.973,19.954,6.317]
[1693922413391,55.0,19.972,19.954,6.317]
[1693922413703,7.811,19.97,19.954,6.317]
[1693922413906,55.0,19.969,19.954,6.317]
[1693922414510,55.0,19.97,19.954,6.317]
[1693922414688,62.811,19.97,19.954,6.317]
[1693922415404,55.0,19.97,19.954,6.317]
[1693922415898,62.811,19.971,19.954,6.317]
[1693922416103,55.0,19.971,19.954,6.317]
[1693922416290,55.0,19.972,19.954,6.317]
[1693922416489,96.9636,19.973,19.954,6.317]
[1693922417793,96.9636,19.973,19.96,88.173]
[1693922417991,95.4636,19.973,19.964,7.813]
[1693922418182,95.4636,19.973,19.962,7.814]
[1693922419105,95.4636,19.973,19.962,62.918]
[1693922419488,26.17744015,19.974,19.962,62.918]
[1693922419700,26.17744015,19.974,19.962,7.814]
[1693922420002,26.17744015,19.974,19.962,62.918]
[1693922420212,26.17744015,19.974,19.962,7.814]
[1693922420697,7.807,19.98,19.962,62.918]
[1693922420889,26.16902616,19.978,19.962,62.918]
[1693922423490,7.806,19.983,19.962,62.918]
[1693922423695,33.96790863,19.983,19.962,62.918]
[1693922425102,7.806,19.983,19.962,62.918]
[1693922425300,7.806,19.983,19.962,7.814]
[1693922425510,26.16527143,19.982,19.962,7.814]
[1693922425685,7.809,19.977,19.962,7.814]
[1693922425886,55.0,19.976,19.962,7.814]
[1693922426199,62.809,19.976,19.962,7.814]
[1693922426406,151.0575,19.976,19.962,7.814]
[1693922426605,158.8665,19.976,19.962,7.814]
[1693922426786,151.0575,19.976,19.962,7.814]
[1693922427505,96.0575,19.976,19.962,7.814]
[1693922427805,25.54,20.0,19.97,25.54]
[1693922428104,95.2074,19.998,19.978,187.698]
[1693922428303,95.2074,19.998,19.979,45.36393245]
[1693922428487,95.2074,19.998,19.984,88.066]
[1693922429091,62.5826785,20.007,19.984,88.066]
[1693922429402,7.797,20.006,19.984,88.066]
[1693922431196,0.58945107,20.005,19.984,88.066]
[1693922431395,25.196,20.003,19.984,88.066]
[1693922431593,7.798,20.003,19.984,88.066]
[1693922431810,55.0,20.002,19.984,88.066]
[1693922432196,7.799,20.003,19.984,88.066]
[1693922433000,25.183,20.014,19.985,25.36393245]
[1693922433206,7.795,20.011,19.993,88.026]
[1693922433909,25.36393245,20.01,19.993,7.802]
[1693922434097,7.794,20.014,19.993,33.01]
[1693922434409,39.6238119,20.019,19.993,33.01]
[1693922434707,7.792,20.02,19.993,33.01]
[1693922434902,92.6724,20.018,19.993,33.01]
[1693922435099,0.61717273,20.023,20.003,32.994]
[1693922435307,0.61717273,20.023,20.003,87.985]
[1693922435610,7.791,20.023,20.003,87.985]
[1693922435911,25.36393245,20.022,20.003,32.994]
[1693922436108,7.792,20.019,20.003,7.798]
[1693922436310,25.54,20.02,20.003,62.789]
[1693922436610,7.791,20.022,20.003,127.476933]
[1693922436799,7.791,20.022,20.003,72.485933]
[1693922436992,40.00675385,20.025,20.003,7.798]
[1693922437193,14.6428214,20.025,20.003,7.798]
[1693922437406,0.61168936,20.024,20.003,7.798]
[1693922437591,8.40168936,20.024,20.003,7.798]
[1693922437791,7.79,20.026,20.003,7.798]
[1693922438010,1.033328,20.029,20.003,32.964]
[1693922438308,7.79,20.026,20.003,32.964]
[1693922438492,1.033328,20.025,20.003,47.94674]
[1693922438698,7.79,20.024,20.003,32.964]
[1693922438900,1.033328,20.023,20.003,32.964]
[1693922439108,7.791,20.022,20.003,32.964]
[1693922439507,25.166,20.027,20.003,32.964]
[1693922439805,7.791,20.024,20.003,32.964]
[1693922440109,56.033328,20.026,20.003,32.964]
[1693922440110,7.79,20.025,20.003,32.964]
[1693922440309,55.82728724,20.024,20.003,32.964]
[1693922440611,135.87093245,20.029,20.003,32.964]
[1693922440907,28.822328,20.028,20.003,32.964]
[1693922441409,28.822328,20.028,20.003,47.94674]
[1693922441808,1.033328,20.028,20.004,75.0]
[1693922441995,1.033328,20.028,19.996,250.0]
[1693922441996,25.54,20.02,19.98,25.54]
[1693922442309,1.033328,20.011,19.988,0.29991751]
[1693922442501,8.828328,20.011,19.982,58.66590187]
[1693922442705,7.795,20.011,19.988,108.72103]
[1693922442904,25.54,20.01,19.988,108.72103]
[1693922443108,7.798,20.005,19.989,0.29991751]
[1693922443296,55.0,20.004,19.989,0.29991751]
[1693922443495,55.0,20.004,19.984,0.29991751]
[1693922443702,55.0,20.005,19.984,0.29991751]
[1693922443907,58.69993245,20.01,19.984,69.20735351]
[1693922444099,7.796,20.01,19.985,40.36016245]
[1693922444301,0.99745647,20.013,19.99,25.54]
[1693922444506,91.0542,20.019,19.991,14.99173]
[1693922444719,7.793,20.016,19.991,40.65557996]
[1693922445016,7.793,20.017,19.992,20.0]
[1693922445407,91.0542,20.019,19.993,25.36393245]
[1693922445603,7.792,20.02,19.994,20.0]
[1693922445811,7.792,20.021,19.995,40.35266245]
[1693922446115,7.792,20.021,19.996,20.0]
[1693922446315,110.32742186,20.023,19.997,25.36393245]
[1693922446511,160.86235431,20.023,19.997,25.36393245]
[1693922446711,135.49842186,20.023,19.998,20.0]
[1693922446914,160.86235431,20.023,19.998,20.0]
[1693922447225,7.793,20.018,19.998,20.0]
[1693922447406,7.793,20.018,19.997,25.36393245]
[1693922447608,7.793,20.018,19.993,56.83411581]
[1693922447915,7.793,20.018,19.997,25.363933]
[1693922448120,55.0,20.017,19.999,7.8]
[1693922448319,55.0,20.019,19.999,7.8]
[1693922448501,44.41644734,20.019,20.0,1.44902129]
[1693922448702,7.793,20.017,20.003,7.798]
[1693922448906,52.20844734,20.019,20.003,7.798]
[1693922449112,25.36393245,20.018,19.996,1.52908514]
[1693922449309,25.179,20.016,19.995,1.82715554]
[1693922449704,25.36393245,20.018,19.995,1.82715554]
[1693922449906,7.794,20.016,19.999,7.8]
[1693922450203,7.794,20.016,20.0,1.82715554]
[1693922450404,7.794,20.016,20.001,7.799]
[1693922450706,62.794,20.015,20.001,7.799]
[1693922450907,62.794,20.015,19.994,20.0]
[1693922450908,55.0,20.015,19.994,20.0]
[1693922451110,88.15793245,20.015,19.997,25.203]
[1693922451312,88.15793245,20.015,19.998,23.38368865]
[1693922451514,113.33893245,20.015,19.998,3.38368865]
[1693922451707,25.36393245,20.014,19.987,3.38368865]
[1693922451908,7.795,20.011,19.987,3.65960616]
[1693922452220,80.54,20.01,19.987,3.65960616]
[1693922452517,39.07999999,20.023,19.989,3.91128236]
[1693922452822,33.332,20.02,19.99,51.17984996]
[1693922453005,33.332,20.02,19.991,3.91128236]
[1693922453206,25.54,20.02,19.992,25.63984996]
[1693922453512,33.332,20.02,19.993,23.91128236]
[1693922453714,25.54,20.02,19.994,25.36393245]
[1693922453912,25.54,20.02,19.995,23.91128236]
[1693922454108,25.54,20.02,19.996,25.36393245]
[1693922454309,25.54,20.02,19.997,23.91128236]
[1693922454614,25.54,20.02,19.998,25.36393245]
[1693922454919,95.1983,20.019,19.999,23.91128236]
[1693922455306,102.9903,20.019,19.999,23.91128236]
[1693922455808,55.0,20.018,19.999,23.91128236]
[1693922457305,62.793,20.018,19.999,23.91128236]
[1693922457507,55.0,20.018,19.999,3.91128236]
[1693922457820,55.0,20.018,19.997,23.91128236]
[1693922458414,55.0,20.018,20.003,87.984]
[1693922458808,55.0,20.018,20.004,3.91128236]
[1693922459007,55.0,20.018,20.007,7.796]
[1693922460130,55.0,20.018,20.004,7.798]
[1693922460423,55.0,20.018,20.005,7.797]
[1693922460823,45.36393245,20.017,20.001,25.197]
[1693922461012,55.0,20.016,20.001,25.197]
[1693922461216,62.793,20.016,20.001,25.197]
[1693922461523,62.793,20.016,19.997,55.006]
[1693922461718,62.793,20.016,19.998,2.74455585]
[1693922461923,25.36393245,20.017,19.998,2.74455585]
[1693922462221,40.41599999,20.024,20.003,7.798]
[1693922462527,7.79,20.026,20.004,2.96374718]
[1693922462718,104.2625,20.026,20.01,7.795]
[1693922463613,33.15393245,20.026,20.01,7.795]
[1693922463925,33.15393245,20.026,20.011,2.78349665]
[1693922463926,7.79,20.026,20.011,2.78349665]
[1693922464123,7.79,20.026,20.011,7.795]
[1693922464321,7.79,20.026,20.012,3.34984758]
[1693922464516,7.79,20.026,20.012,11.14484758]
[1693922465013,7.79,20.026,20.012,3.34984758]
[1693922465214,107.4635,20.029,20.013,7.794]
[1693922465414,7.789,20.027,20.014,3.34984758]
[1693922465619,7.789,20.027,20.011,7.795]
[1693922465822,7.789,20.027,20.012,3.34984758]
[1693922466025,7.789,20.027,20.012,11.14484758]
[1693922466325,25.164,20.028,20.005,7.797]
[1693922466326,32.963,20.022,20.005,7.797]
[1693922466521,58.32693245,20.022,20.005,7.797]
[1693922466918,58.32693245,20.022,19.997,25.36393245]
[1693922466919,54.934,20.026,20.012,187.386]
[1693922467120,7.786,20.034,20.013,3.33036987]
[1693922467319,7.79,20.026,20.013,11.12436987]
[1693922467517,7.79,20.026,20.005,25.193]
[1693922467734,25.54,20.02,19.998,55.004]
[1693922467927,7.794,20.016,19.999,3.91128236]
[1693922468227,7.792,20.019,20.001,3.91128236]
[1693922468830,55.0,20.018,20.0,3.91128236]
[1693922469023,7.79,20.024,20.0,3.91128236]
[1693922469327,7.79,20.026,20.001,25.36393245]
[1693922469531,94.4811,20.027,20.002,3.91128236]
[1693922469823,94.4811,20.027,20.002,101.93908236]
[1693922470133,7.791,20.023,20.005,7.797]
[1693922470423,7.791,20.023,20.009,7.796]
[1693922470626,7.791,20.023,20.01,3.91128236]
[1693922471128,55.0,20.022,20.009,3.91128236]
[1693922471335,62.791,20.022,20.009,7.796]
[1693922471830,62.791,20.022,20.007,7.797]
[1693922473729,62.791,20.022,20.01,7.796]
[1693922473926,55.0,20.022,20.01,7.796]
[1693922474135,62.791,20.022,20.01,7.796]
[1693922474635,50.61,20.02,20.003,7.798]
[1693922474820,7.793,20.017,20.004,1.96567049]
[1693922475132,7.793,20.017,20.004,9.76367049]
[1693922475320,55.0,20.016,20.004,1.96567049]
[1693922475525,62.793,20.016,20.004,7.798]
[1693922476030,62.793,20.016,19.993,54.933]
[1693922476031,50.61,20.01,19.993,54.933]
[1693922476230,7.798,20.005,19.994,1.68337283]
[1693922476526,7.798,20.005,19.99,1.68337283]
[1693922476717,7.799,20.003,19.99,1.68337283]
[1693922477034,55.0,20.002,19.99,7.803]
[1693922477229,55.0,20.002,19.991,1.58388055]
[1693922477230,50.61,20.0,19.991,1.58388055]
[1693922477432,7.801,19.998,19.982,7.806]
[1693922477735,7.801,19.998,19.983,3.91128236]
[1693922477736,55.0,19.997,19.983,3.91128236]
[1693922478031,7.801,19.996,19.983,3.91128236]
[1693922478233,55.0,19.995,19.983,3.91128236]
[1693922478530,7.802,19.993,19.981,3.91128236]
[1693922478722,62.803,19.992,19.981,3.91128236]
[1693922478919,62.803,19.992,19.975,7.809]
[1693922479126,25.36,19.99,19.972,3.91128236]
[1693922479430,7.806,19.985,19.972,3.91128236]
[1693922479638,7.806,19.985,19.972,7.81]
[1693922479819,55.0,19.984,19.972,7.81]
[1693922480629,55.006,19.998,19.973,7.81]
[1693922480939,7.803,19.993,19.974,3.91128236]
[1693922481121,7.803,19.99,19.977,7.808]
[1693922481313,55.0,19.989,19.978,3.91128236]
[1693922481517,55.0,19.989,19.978,11.71928236]
[1693922481722,55.0,19.99,19.978,7.808]
[1693922481914,55.0,19.995,19.979,3.91128236]
[1693922482121,7.803,19.992,19.979,3.91128236]
[1693922482337,55.0,19.991,19.978,7.808]
[1693922482522,55.0,19.991,19.979,7.808]
[1693922482721,62.803,19.991,19.979,7.808]
[1693922483021,55.0,19.991,19.979,7.808]
[1693922483331,55.0,19.991,19.98,2.19185494]
[1693922483634,55.0,19.991,19.981,7.807]
[1693922483831,99.8558,19.996,19.982,2.19185494]
[1693922484025,7.8,19.999,19.984,7.806]
[1693922484230,14.74624624,20.008,19.985,1.44502833]
[1693922484419,27.797,20.007,19.991,7.803]
[1693922484618,7.797,20.007,19.991,7.803]
[1693922485229,22.54224624,20.008,19.991,7.803]
[1693922487036,25.36393245,20.007,19.989,7.803]
[1693922487331,7.799,20.002,19.99,2.02084304]
[1693922487531,7.799,20.002,19.987,2.1584121]
[1693922487938,7.799,20.002,19.985,2.55143449]
[1693922488236,62.799,20.001,19.988,2.55143449]
[1693922488435,7.799,20.001,19.988,10.35543449]
[1693922488742,7.799,20.001,19.988,7.804]
[1693922489037,7.799,20.001,19.987,7.805]
[1693922489533,7.799,20.001,19.988,1.88204072]
[1693922489739,62.8,20.0,19.985,7.805]
[1693922489933,62.8,20.0,19.986,1.82529827]
[1693922490132,62.8,20.0,19.986,9.63029827]
[1693922491328,55.0,20.0,19.986,7.805]
[1693922491526,55.0,20.0,19.987,1.67351033]
[1693922491942,62.8,20.0,19.987,1.67351033]
[1693922492230,62.8,20.0,19.985,9.65315073]
[1693922492433,62.8,20.0,19.984,2.40679728]
[1693922492736,62.8,20.0,19.987,2.40679728]
[1693922492935,88.16,20.0,19.984,7.805]
[1693922493122,113.52393245,20.0,19.985,1.59937857]
[1693922493324,97.6678,19.999,19.981,2.55519388]
[1693922493524,7.802,19.994,19.982,7.806]
[1693922493725,55.0,19.993,19.982,7.806]
[1693922493936,7.803,19.992,19.98,7.807]
[1693922494140,55.0,19.991,19.98,7.807]
[1693922494322,62.803,19.991,19.98,7.807]
[1693922494636,62.803,19.991,19.981,1.52009558]
[1693922494816,62.803,19.991,19.982,7.807]
[1693922495017,62.803,19.991,19.977,25.228]
[1693922495018,25.36,19.99,19.978,1.70778789]
[1693922495221,33.022,19.987,19.972,1.79414805]
[1693922495429,7.81,19.973,19.957,25.254]
[1693922495628,7.81,19.973,19.957,7.816]
[1693922495831,55.0,19.972,19.957,7.816]
[1693922496039,7.812,19.968,19.957,7.816]
[1693922496743,55.0,19.967,19.954,25.257]
[1693922497039,62.812,19.967,19.957,7.816]
[1693922497221,62.812,19.967,19.95,80.262]
[1693922497427,62.812,19.967,19.947,25.266]
[1693922497729,62.812,19.967,19.946,55.147]
[1693922497730,25.36393245,19.966,19.95,7.819]
[1693922497933,7.813,19.965,19.95,7.819]
[1693922498134,55.0,19.964,19.951,0.60945712]
[1693922498329,55.0,19.964,19.951,7.818]
[1693922498539,7.814,19.964,19.952,0.76666032]
[1693922498731,55.0,19.963,19.951,7.818]
[1693922498940,62.814,19.963,19.951,7.818]
[1693922499140,55.0,19.963,19.951,7.818]
[1693922499435,55.0,19.964,19.951,33.079]
[1693922500024,62.814,19.964,19.951,7.818]
[1693922501139,62.814,19.964,19.95,7.819]
[1693922501436,88.17793245,19.964,19.95,7.819]
[1693922501743,80.36393245,19.964,19.951,0.62860408]
[1693922501937,88.17793245,19.964,19.952,7.818]
[1693922502139,25.36393245,19.963,19.945,25.268]
[1693922502340,7.815,19.96,19.949,7.819]
[1693922502936,55.0,19.959,19.947,7.82]
[1693922503133,62.816,19.959,19.949,7.819]
[1693922503335,55.0,19.959,19.949,7.819]
[1693922503542,62.816,19.959,19.947,7.82]
[1693922503740,62.816,19.959,19.948,8.32339936]
[1693922504043,62.816,19.959,19.948,7.82]
[1693922504449,7.816,19.959,19.948,7.82]
[1693922504636,25.245,19.964,19.949,0.91243277]
[1693922504834,7.815,19.96,19.95,7.819]
[1693922505433,33.076,19.954,19.941,0.49517436]
[1693922505951,80.36393245,19.953,19.937,7.824]
[1693922506247,7.82,19.949,19.939,7.823]
[1693922506630,97.8882,19.952,19.939,7.823]
[1693922506953,7.82,19.949,19.939,7.823]
[1693922507141,7.82,19.949,19.937,7.824]
[1693922507341,7.82,19.947,19.936,0.67243296]
[1693922507531,123.1482,19.952,19.936,0.67243296]
[1693922507727,123.1482,19.952,19.926,14.95185556]
[1693922507728,7.821,19.946,19.931,2.04959693]
[1693922507946,25.267,19.947,19.927,57.31813431]
[1693922507947,7.821,19.944,19.927,57.31813431]
[1693922508149,7.821,19.944,19.934,2.11713431]
[1693922508346,55.0,19.943,19.934,2.11713431]
[1693922508538,62.822,19.943,19.934,2.11713431]
[1693922508737,62.822,19.943,19.931,2.11713431]
[1693922508939,55.0,19.943,19.934,7.825]
[1693922509136,55.0,19.943,19.935,2.11713431]
[1693922509335,62.822,19.943,19.935,2.11713431]
[1693922509538,117.979,19.943,19.934,2.11713431]
[1693922509753,117.979,19.943,19.921,25.298]
[1693922509941,117.979,19.943,19.922,2.11713431]
[1693922510143,117.979,19.943,19.923,7.829]
[1693922510450,117.979,19.943,19.924,2.11713431]
[1693922510747,7.825,19.936,19.924,2.11713431]
[1693922511150,55.0,19.935,19.924,2.11713431]
[1693922511350,62.825,19.935,19.924,2.11713431]
[1693922511649,62.825,19.935,19.923,9.94713431]
[1693922511945,62.825,19.935,19.923,2.11713431]
[1693922512146,62.825,19.935,19.919,25.301]
[1693922512147,62.825,19.935,19.922,2.11713431]
[1693922512348,62.825,19.935,19.92,29.94713431]
[1693922512844,62.825,19.935,19.92,2.11713431]
[1693922513047,62.825,19.935,19.917,7.832]
[1693922513240,62.825,19.935,19.914,2.11713431]
[1693922513436,88.18893245,19.935,19.914,9.95013431]
[1693922513743,25.36393245,19.934,19.914,9.95013431]
[1693922514051,7.828,19.928,19.914,7.833]
[1693922514255,55.0,19.927,19.91,2.11713431]
[1693922514560,55.0,19.927,19.906,55.259]
[1693922514561,7.829,19.926,19.912,2.11713431]
[1693922514741,55.0,19.925,19.913,7.833]
[1693922515143,105.841,19.93,19.914,2.11713431]
[1693922515437,7.829,19.926,19.912,2.11713431]
[1693922515637,7.829,19.926,19.905,7.837]
[1693922515638,25.36,19.92,19.905,7.837]
[1693922515852,7.832,19.918,19.906,2.11713431]
[1693922516043,7.832,19.918,19.903,7.837]
[1693922516241,55.0,19.917,19.898,25.327]
[1693922516442,7.833,19.915,19.902,7.838]
[1693922516639,55.0,19.914,19.902,7.838]
[1693922516839,25.36,19.92,19.902,7.838]
[1693922517155,25.36,19.92,19.903,1.0710658]
[1693922517352,63.058,19.918,19.903,1.0710658]
[1693922517659,25.36,19.91,19.893,25.335]
[1693922517857,7.836,19.908,19.894,9.95813431]
[1693922518152,7.836,19.908,19.894,7.841]
[1693922518360,7.836,19.908,19.892,7.841]
[1693922518649,62.836,19.907,19.893,7.841]
[1693922518850,62.836,19.907,19.891,7.842]
[1693922519051,7.836,19.907,19.889,25.339]
[1693922519255,25.36,19.91,19.893,7.841]
[1693922519555,25.31,19.913,19.894,1.59295312]
[1693922519859,25.36393245,19.917,19.898,7.839]
[1693922520042,7.834,19.914,19.898,7.839]
[1693922520354,7.833,19.915,19.891,55.301]
[1693922520551,33.19693245,19.915,19.897,7.84]
[1693922520853,7.833,19.915,19.895,25.332]
[1693922521042,7.833,19.915,19.898,2.11713431]
[1693922521357,88.43093245,19.915,19.898,2.11713431]
[1693922521657,7.836,19.908,19.894,9.95813431]
[1693922521838,7.836,19.908,19.894,2.11713431]
[1693922522036,25.36393245,19.907,19.887,2.11713431]
[1693922522243,7.838,19.901,19.887,9.96113431]
[1693922522547,88.199,19.9,19.882,25.349]
[1693922522743,88.199,19.9,19.887,7.844]
[1693922522949,62.839,19.9,19.888,0.76843739]
[1693922523137,62.839,19.9,19.887,7.844]
[1693922523344,62.839,19.9,19.885,7.844]
[1693922523540,88.199,19.9,19.886,1.40172261]
[1693922523745,113.56293245,19.9,19.886,1.40172261]
[1693922524853,113.56293245,19.9,19.885,7.845]
[1693922525057,25.36393245,19.899,19.883,7.845]
[1693922525274,62.84,19.898,19.884,0.78232907]
[1693922525561,62.84,19.898,19.884,8.62732907]
[1693922526844,88.20393245,19.898,19.88,7.846]
[1693922527050,25.36393245,19.897,19.877,25.355]
[1693922527250,25.36393245,19.897,19.879,7.847]
[1693922527251,7.842,19.891,19.879,7.847]
[1693922527557,55.0,19.89,19.879,7.847]
[1693922527963,62.843,19.89,19.872,55.335]
[1693922528265,88.203,19.89,19.873,8.93943529]
[1693922528559,88.203,19.89,19.873,7.849]
[1693922528560,62.843,19.89,19.873,7.849]
[1693922528863,62.843,19.89,19.873,33.21]
[1693922529058,62.843,19.89,19.874,2.11713431]
[1693922529264,62.843,19.89,19.865,100.175]
[1693922529265,87.83698389,19.89,19.862,80.37498389]
[1693922529458,138.12958389,19.889,19.865,1.62621605]
[1693922529760,7.846,19.882,19.868,7.851]
[1693922530056,7.846,19.882,19.87,7.85]
[1693922530362,7.846,19.882,19.862,25.374]
[1693922530363,55.0,19.881,19.862,25.374]
[1693922530556,55.0,19.881,19.86,55.83650921]
[1693922530557,7.847,19.88,19.867,0.77274424]
[1693922530761,25.34,19.889,19.87,33.213]
[1693922530950,100.029,19.895,19.871,1.05210469]
[1693922531261,7.843,19.891,19.878,7.847]
[1693922531462,7.843,19.891,19.876,7.848]
[1693922531759,63.144,19.891,19.868,80.8304931]
[1693922531953,63.144,19.891,19.87,1.52582993]
[1693922532157,7.843,19.891,19.875,33.206]
[1693922532353,7.843,19.891,19.875,7.848]
[1693922533054,7.843,19.891,19.876,0.50812582]
[1693922533262,7.843,19.891,19.88,7.846]
[1693922533460,7.843,19.891,19.878,7.847]
[1693922533661,25.36,19.89,19.873,25.36]
[1693922533966,7.845,19.885,19.873,25.36]
[1693922534357,62.845,19.884,19.875,7.848]
[1693922534861,62.845,19.884,19.869,25.364]
[1693922535060,62.845,19.884,19.873,7.849]
[1693922536866,62.845,19.884,19.871,7.85]
[1693922537065,62.845,19.884,19.869,7.851]
[1693922537362,25.36,19.88,19.866,7.852]
[1693922537667,7.848,19.876,19.864,7.853]
[1693922537850,7.848,19.876,19.862,7.853]
[1693922538165,7.85,19.871,19.86,7.854]
[1693922538362,7.852,19.868,19.856,7.856]
[1693922538666,62.852,19.867,19.856,7.856]
[1693922538866,20.0,19.866,19.846,25.394]
[1693922539048,7.854,19.861,19.849,7.859]
[1693922539365,55.0,19.86,19.849,7.859]
[1693922539565,62.855,19.86,19.849,7.859]
[1693922539954,55.0,19.86,19.849,7.859]
[1693922540166,55.0,19.861,19.849,7.859]
[1693922540461,62.854,19.861,19.843,55.431]
[1693922540671,7.856,19.856,19.842,25.399]
[1693922540858,55.0,19.855,19.838,55.448]
[1693922541065,25.36,19.86,19.843,7.861]
[1693922541263,7.856,19.856,19.844,0.60439442]
[1693922541461,7.856,19.856,19.843,7.861]
[1693922541462,55.0,19.855,19.84,7.862]
[1693922541655,7.858,19.853,19.835,25.409]
[1693922541962,55.0,19.855,19.837,7.863]
[1693922542164,7.858,19.852,19.837,7.863]
[1693922542360,55.0,19.856,19.837,7.863]
[1693922542560,7.858,19.851,19.837,7.863]
[1693922542962,55.0,19.85,19.837,7.863]
[1693922543161,88.219,19.85,19.837,7.863]
[1693922543858,88.219,19.85,19.837,7.864]
[1693922544061,88.219,19.85,19.836,7.864]
[1693922544763,88.219,19.85,19.835,7.864]
[1693922545159,88.219,19.85,19.832,25.413]
[1693922545160,80.36,19.85,19.832,55.465]
[1693922545466,88.219,19.85,19.831,25.413]
[1693922545671,88.219,19.85,19.832,20.0]
[1693922545870,88.219,19.85,19.833,7.865]
[1693922546561,33.219,19.85,19.833,7.865]
[1693922547369,20.0,19.849,19.834,0.67560812]
[1693922547572,20.0,19.849,19.828,80.894]
[1693922547573,7.861,19.845,19.831,7.866]